bitfinex/quotes_SOLUSD_20250908
["timestamp","ask_amount","ask_price","bid_price","bid_amount"]
[1757354166375,0.06,215.39,215.38,30.64295663]
[1757354166784,0.06,215.39,215.38,68.60295663]
[1757354167391,0.74,215.39,215.38,37.94]
[1757354167570,0.06,215.39,215.38,37.94]
[1757354167774,0.74,215.39,215.35,26.0]
[1757354167969,0.74,215.39,215.34,4.64381907]
[1757354168171,0.06,215.39,215.35,37.94]
[1757354168482,0.06,215.39,215.37,26.0]
[1757354168483,0.68,215.38,215.37,26.0]
[1757354168788,0.68,215.38,215.37,63.94]
[1757354168997,0.68,215.38,215.37,37.94]
[1757354169367,14.27559401,215.38,215.37,37.92]
[1757354169574,13.59559401,215.38,215.37,37.92]
[1757354169791,13.59559401,215.38,215.34,4.64381907]
[1757354169997,13.59559401,215.38,215.35,37.9]
[1757354171390,13.59559401,215.38,215.36,4.64338781]
[1757354172396,13.59559401,215.38,215.35,42.54360178]
[1757354172695,14.25559401,215.38,215.36,37.86]
[1757354173196,14.25559401,215.37,215.33,26.03]
[1757354173503,14.25559401,215.37,215.34,42.48375595]
[1757354174898,0.66,215.36,215.33,26.03]
[1757354175196,0.66,215.36,215.35,37.82]
[1757354175197,14.25559401,215.36,215.35,37.82]
[1757354175882,14.25559401,215.36,215.35,37.8]
[1757354177102,13.59559401,215.35,215.33,0.03]
[1757354177396,5.30342404,215.36,215.33,0.03]
[1757354177605,4.64342404,215.36,215.34,37.76]
[1757354178098,0.66,215.35,215.34,37.76]
[1757354178799,0.66,215.35,215.34,37.72]
[1757354178994,14.25559401,215.35,215.34,37.72]
[1757354179502,14.25559401,215.35,215.33,0.03]
[1757354179794,14.20439517,215.34,215.33,37.75]
[1757354180004,18.89941308,215.34,215.33,37.75]
[1757354180176,18.89941308,215.34,215.33,37.73]
[1757354180374,18.89941308,215.34,215.33,0.03]
[1757354183078,22.35348183,215.34,215.33,0.03]
[1757354186403,25.53986141,215.34,215.33,0.03]
[1757354187201,22.35348183,215.34,215.33,0.03]
[1757354187389,21.69348183,215.34,215.33,0.03]
[1757354189912,18.23941308,215.34,215.33,0.03]
[1757354190486,18.89941308,215.34,215.33,0.03]
[1757354192098,18.23941308,215.34,215.33,0.03]
[1757354194604,18.89941308,215.34,215.33,0.03]
[1757354194806,18.89941308,215.34,215.33,37.59]
[1757354194984,18.89941308,215.34,215.33,0.03]
[1757354195307,18.89941308,215.34,215.33,37.59]
[1757354195891,18.89941308,215.34,215.33,0.03]
[1757354196203,18.89941308,215.34,215.33,37.59]
[1757354196580,13.59559401,215.34,215.33,37.59]
[1757354197012,0.06,215.38,215.36,26.0]
[1757354197506,0.06,215.38,215.37,0.68]
[1757354198694,0.06,215.38,215.37,37.56]
[1757354199716,0.06,215.38,215.34,0.68]
[1757354199910,0.06,215.38,215.37,37.56]
[1757354200091,0.72,215.38,215.37,37.56]
[1757354200288,13.59559401,215.37,215.33,26.03]
[1757354200509,18.23880971,215.37,215.34,37.56]
[1757354200705,18.23880971,215.37,215.33,0.03]
[1757354200911,18.23880971,215.37,215.34,37.56]
[1757354200912,18.89880971,215.37,215.34,37.56]
[1757354201218,18.89880971,215.37,215.33,0.03]
[1757354201408,0.06,215.38,215.34,38.27]
[1757354201607,0.06,215.38,215.35,0.71]
[1757354202893,0.06,215.38,215.35,5.35358172]
[1757354203313,0.06,215.38,215.36,37.56]
[1757354203500,0.06,215.38,215.36,38.27]
[1757354204013,0.06,215.38,215.37,0.71]
[1757354204243,0.06,215.38,215.36,37.56]
[1757354204397,0.06,215.38,215.35,4.64358172]
[1757354204720,13.59559401,215.37,215.36,37.56]
[1757354205097,0.66,215.37,215.33,0.03]
[1757354205313,14.25559401,215.37,215.36,37.56]
[1757354206102,14.25559401,215.37,215.33,0.03]
[1757354206416,14.25559401,215.36,215.34,37.56]
[1757354207905,0.66,215.35,215.33,0.03]
[1757354208122,13.59559401,215.34,215.33,0.03]
[1757354208437,0.66,215.34,215.33,37.59]
[1757354208614,5.30381907,215.34,215.33,37.59]
[1757354209326,13.59559401,215.35,215.33,37.59]
[1757354210709,18.23934903,215.35,215.33,37.59]
[1757354210909,18.89934903,215.35,215.33,37.59]
[1757354211200,0.66,215.34,215.33,0.03]
[1757354211414,0.66,215.34,215.33,37.59]
[1757354211597,0.66,215.34,215.33,0.03]
[1757354212001,0.66,215.34,215.33,37.59]
[1757354212632,0.66,215.34,215.33,0.03]
[1757354212796,5.30381907,215.34,215.33,0.03]
[1757354218112,18.89941308,215.34,215.33,0.03]
[1757354219425,13.59559401,215.34,215.33,0.03]
[1757354219806,18.23941308,215.34,215.33,0.03]
[1757354220308,18.23941308,215.34,215.33,0.74]
[1757354220309,13.59559401,215.34,215.33,0.74]
[1757354220508,0.06,215.38,215.34,26.0]
[1757354220726,0.06,215.38,215.35,0.71]
[1757354221033,0.06,215.38,215.34,26.0]
[1757354221034,0.06,215.38,215.36,37.56]
[1757354221213,0.06,215.38,215.36,38.27]
[1757354221606,13.65559401,215.38,215.34,26.0]
[1757354221830,13.65559401,215.38,215.35,38.27]
[1757354222006,0.06,215.38,215.36,0.71]
[1757354222418,13.65559401,215.38,215.36,0.71]
[1757354222831,13.65559401,215.38,215.37,37.54]
[1757354223531,13.65559401,215.38,215.34,0.71]
[1757354223739,14.92439517,215.38,215.35,37.54]
[1757354224449,13.59559401,215.36,215.33,0.03]
[1757354224616,13.59559401,215.36,215.34,37.54]
[1757354225012,13.59559401,215.36,215.33,0.03]
[1757354225217,14.25559401,215.35,215.34,37.54]
[1757354225429,13.59559401,215.35,215.34,37.54]
[1757354226149,18.23919744,215.35,215.34,37.54]
[1757354226517,18.23919744,215.35,215.33,0.03]
[1757354226724,18.89919744,215.35,215.34,37.54]
[1757354227448,13.59559401,215.34,215.33,0.03]
[1757354227653,14.20439517,215.34,215.33,37.57]
[1757354227837,14.86439517,215.34,215.33,37.57]
[1757354228241,18.84821424,215.34,215.33,0.03]
[1757354228425,19.50821424,215.34,215.33,0.03]
[1757354228621,18.89941308,215.34,215.33,0.03]
[1757354229242,22.3680363,215.34,215.33,0.03]
[1757354229431,18.89941308,215.34,215.33,0.03]
[1757354230144,22.3682548,215.34,215.33,0.03]
[1757354230841,17.06443573,215.34,215.33,0.03]
[1757354231025,13.59559401,215.35,215.33,0.03]
[1757354231219,14.20439517,215.35,215.33,0.73]
[1757354231630,14.20439517,215.35,215.33,0.03]
[1757354232320,9.17105199,215.34,215.33,0.03]
[1757354232524,13.81487106,215.34,215.33,0.03]
[1757354232834,8.83321392,215.34,215.33,0.03]
[1757354233538,13.81487106,215.34,215.33,0.03]
[1757354236940,8.83321392,215.34,215.33,0.03]
[1757354237334,5.36381907,215.34,215.33,0.03]
[1757354237636,22.42809441,215.34,215.33,0.03]
[1757354238353,21.70809441,215.34,215.33,0.03]
[1757354238756,13.59559401,215.34,215.33,0.03]
[1757354238964,13.59559401,215.34,215.33,0.73]
[1757354241783,13.59559401,215.34,215.33,0.03]
[1757354242136,18.23941308,215.34,215.33,0.03]
[1757354242646,13.59559401,215.34,215.33,0.03]
[1757354243869,18.23941308,215.34,215.33,37.55]
[1757354244244,13.59559401,215.34,215.33,37.55]
[1757354244437,13.59559401,215.34,215.33,0.03]
[1757354244839,18.23941308,215.34,215.33,0.03]
[1757354246344,21.71025596,215.34,215.33,0.03]
[1757354246544,13.59559401,215.34,215.33,0.03]
[1757354246764,18.23941308,215.34,215.33,0.03]
[1757354249158,21.71214794,215.34,215.33,0.03]
[1757354249639,17.06832887,215.34,215.33,0.03]
[1757354249840,17.06832887,215.34,215.33,0.73]
[1757354250051,17.06832887,215.34,215.33,0.03]
[1757354250338,13.59559401,215.37,215.33,26.73]
[1757354250543,134.56,215.38,215.33,26.73]
[1757354250544,0.06,215.38,215.34,0.7]
[1757354250744,13.65559401,215.38,215.35,38.22]
[1757354251161,0.06,215.38,215.36,0.7]
[1757354251366,13.65559401,215.38,215.36,0.7]
[1757354251746,0.06,215.38,215.36,0.7]
[1757354251947,0.06,215.38,215.37,0.7]
[1757354252350,0.06,215.38,215.33,26.03]
[1757354252351,1.38880116,215.38,215.36,37.5]
[1757354252567,0.78,215.38,215.36,37.5]
[1757354253163,4.64317221,215.37,215.36,37.5]
[1757354253576,0.78,215.38,215.36,37.5]
[1757354253868,4.70300531,215.38,215.36,37.5]
[1757354254749,14.92439517,215.37,215.34,37.5]
[1757354254949,0.72,215.36,215.34,37.5]
[1757354255464,5.36358272,215.36,215.34,37.5]
[1757354255663,13.59559401,215.34,215.33,0.03]
[1757354255874,13.59559401,215.34,215.33,37.53]
[1757354256073,1.32880116,215.34,215.33,0.03]
[1757354256280,1.32880116,215.34,215.33,37.53]
[1757354256651,1.32880116,215.34,215.33,0.03]
[1757354257170,6.3104583,215.34,215.33,0.03]
[1757354257370,1.32880116,215.34,215.33,0.03]
[1757354257871,10.95427737,215.34,215.33,0.03]
[1757354259276,28.02208874,215.34,215.33,0.03]
[1757354262670,28.01928504,215.34,215.33,0.03]
[1757354262981,23.0376279,215.34,215.33,0.03]
[1757354263165,28.01928504,215.34,215.33,0.03]
[1757354263355,29.87806429,215.34,215.33,0.03]
[1757354264151,29.87806429,215.34,215.28,0.03]
[1757354264152,26.0,215.3,215.28,0.03]
[1757354264355,19.18605231,215.29,215.28,0.03]
[1757354264581,14.20439517,215.29,215.28,0.03]
[1757354264762,23.83094989,215.29,215.28,0.03]
[1757354264959,19.54929275,215.29,215.28,0.03]
[1757354265164,24.53094989,215.29,215.28,0.03]
[1757354265473,29.17776813,215.29,215.28,0.03]
[1757354265679,24.19611099,215.29,215.28,0.03]
[1757354265888,29.17776813,215.29,215.28,0.03]
[1757354271171,31.60303954,215.29,215.28,0.03]
[1757354272159,21.27456416,215.29,215.28,0.74]
[1757354272366,16.02086542,215.29,215.28,0.74]
[1757354272554,20.665763,215.29,215.28,0.74]
[1757354273577,20.665763,215.29,215.28,0.03]
[1757354275460,21.27456416,215.29,215.28,0.03]
[1757354275676,26.2562213,215.29,215.28,0.03]
[1757354276781,21.27456416,215.29,215.28,0.03]
[1757354280202,13.59559401,215.29,215.28,0.74]
[1757354280393,11.60951554,215.35,215.28,0.74]
[1757354280394,13.59559401,215.32,215.28,0.74]
[1757354280783,13.59559401,215.32,215.28,38.22]
[1757354280983,13.59559401,215.3,215.28,0.03]
[1757354281293,13.59559401,215.3,215.28,0.74]
[1757354281496,14.20439517,215.29,215.28,0.03]
[1757354281688,14.20439517,215.29,215.28,0.74]
[1757354281882,14.20439517,215.29,215.28,0.03]
[1757354282304,18.84929275,215.29,215.28,0.03]
[1757354285800,19.54929275,215.29,215.28,0.03]
[1757354286593,18.84929275,215.29,215.28,0.03]
[1757354288389,13.59559401,215.29,215.28,0.03]
[1757354288701,13.59559401,215.29,215.28,0.74]
[1757354288898,13.59559401,215.29,215.28,38.2]
[1757354289724,3.03333554,215.33,215.28,42.84511334]
[1757354289912,13.59559401,215.32,215.29,0.71]
[1757354290529,13.59559401,215.32,215.3,0.72]
[1757354290718,13.59559401,215.32,215.31,0.72]
[1757354290896,13.59559401,215.32,215.29,0.72]
[1757354291214,0.60880116,215.31,215.28,0.03]
[1757354291419,14.20439517,215.32,215.29,37.44]
[1757354292117,4.64446611,215.31,215.29,37.44]
[1757354294518,4.64446611,215.31,215.28,0.75]
[1757354294824,14.87439517,215.3,215.28,0.03]
[1757354295022,14.20439517,215.3,215.29,37.44]
[1757354295920,14.20439517,215.3,215.28,0.03]
[1757354296103,14.20439517,215.3,215.28,37.47]
[1757354296304,18.24049159,215.29,215.28,37.47]
[1757354297407,13.59559401,215.29,215.28,37.47]
[1757354298213,13.59559401,215.29,215.28,0.03]
[1757354298415,18.84929275,215.29,215.28,0.03]
[1757354299136,18.24049159,215.29,215.28,0.03]
[1757354299609,22.10043676,215.29,215.28,0.03]
[1757354300830,24.52562446,215.29,215.28,0.03]
[1757354302026,21.33567929,215.29,215.28,0.03]
[1757354302225,24.52562446,215.29,215.28,0.03]
[1757354302625,25.13442562,215.29,215.28,0.03]
[1757354302831,21.94448045,215.29,215.28,0.03]
[1757354303017,25.13442562,215.29,215.28,0.03]
[1757354309728,21.27448045,215.29,215.28,0.75]
[1757354310939,21.27448045,215.29,215.28,0.03]
[1757354311339,24.46442562,215.29,215.28,0.03]
[1757354311649,25.13442562,215.29,215.28,0.03]
[1757354311825,24.46442562,215.29,215.28,0.03]
[1757354312225,21.27448045,215.29,215.28,0.03]
[1757354313242,21.27448045,215.29,215.28,0.75]
[1757354313557,21.27448045,215.29,215.28,0.03]
[1757354316048,25.13442562,215.29,215.28,0.03]
[1757354316958,21.94448045,215.29,215.28,0.03]
[1757354317255,24.46442562,215.29,215.28,0.03]
[1757354317631,25.13442562,215.29,215.28,0.03]
[1757354321747,62.51442562,215.29,215.28,0.03]
[1757354322864,67.16675015,215.29,215.28,0.03]
[1757354323066,29.78675015,215.29,215.28,0.03]
[1757354323363,67.16675015,215.29,215.28,0.03]
[1757354324348,67.19675015,215.29,215.28,0.03]
[1757354324948,24.46442562,215.29,215.28,0.03]
[1757354326462,25.16442562,215.29,215.28,0.03]
[1757354326654,21.27448045,215.29,215.28,0.03]
[1757354327659,24.46442562,215.29,215.28,0.03]
[1757354328259,25.16442562,215.29,215.28,0.03]
[1757354328645,24.46442562,215.29,215.28,0.03]
[1757354329068,21.27448045,215.29,215.28,0.03]
[1757354329261,24.46442562,215.29,215.28,0.03]
[1757354331472,21.27448045,215.29,215.28,0.72]
[1757354332568,21.27448045,215.29,215.28,0.03]
[1757354332760,24.46442562,215.29,215.28,0.03]
[1757354334647,25.16442562,215.29,215.28,0.03]
[1757354335264,24.46442562,215.29,215.28,0.03]
[1757354336154,25.16442562,215.29,215.28,0.03]
[1757354337471,27.02337763,215.29,215.28,0.03]
[1757354337966,25.16442562,215.29,215.28,0.03]
[1757354338145,27.02329125,215.29,215.28,0.03]
[1757354339149,23.83334608,215.29,215.28,0.03]
[1757354339352,21.27448045,215.29,215.28,0.03]
[1757354340280,21.27448045,215.29,215.28,0.72]
[1757354341079,21.27448045,215.29,215.28,0.03]
[1757354341962,21.27448045,215.29,215.28,0.72]
[1757354342162,21.27448045,215.29,215.28,0.03]
[1757354346374,26.95808717,215.29,215.28,0.03]
[1757354346757,16.62958287,215.29,215.28,0.03]
[1757354347864,21.27448045,215.29,215.28,0.03]
[1757354353779,13.59559401,215.29,215.28,0.7]
[1757354354366,0.06,215.3,215.28,0.7]
[1757354355461,0.06,215.3,215.29,0.67]
[1757354357690,0.06,215.3,215.28,0.03]
[1757354357981,13.65559401,215.3,215.28,37.98]
[1757354358577,0.06,215.3,215.28,37.98]
[1757354358886,0.06,215.3,215.29,0.67]
[1757354360176,0.06,215.3,215.29,5.31489758]
[1757354366366,0.06,215.3,215.29,63.91]
[1757354367368,0.06,215.3,215.29,68.55489758]
[1757354367777,0.06,215.3,215.29,31.31489758]
[1757354368097,0.06,215.3,215.29,68.55489758]
[1757354374091,0.06,215.3,215.29,68.51489758]
[1757354376080,0.06,215.3,215.29,31.31489758]
[1757354376294,0.06,215.3,215.29,68.51489758]
[1757354380196,0.06,215.3,215.29,67.84489758]
[1757354380395,0.06,215.3,215.29,30.64489758]
[1757354380590,0.06,215.3,215.29,68.53489758]
[1757354387204,0.06,215.3,215.29,67.82489758]
[1757354387402,0.06,215.3,215.29,68.53489758]
[1757354388710,0.06,215.3,215.29,31.35489758]
[1757354389009,0.06,215.3,215.29,68.51489758]
[1757354389216,0.06,215.3,215.29,31.35489758]
[1757354389390,0.06,215.3,215.29,68.54489758]
[1757354391209,0.06,215.3,215.29,31.38489758]
[1757354391400,0.06,215.3,215.29,68.54489758]
[1757354392913,0.06,215.33,215.29,80.71452923]
[1757354393094,0.06,215.35,215.3,0.71]
[1757354393291,0.06,215.35,215.34,26.0]
[1757354393486,0.06,215.35,215.34,63.85]
[1757354394098,0.06,215.38,215.34,63.85]
[1757354394387,0.06,215.38,215.34,26.0]
[1757354394583,0.06,215.38,215.37,30.64317221]
[1757354394784,0.06,215.38,215.37,67.78317221]
[1757354398090,0.76,215.38,215.36,4.64337391]
[1757354398408,0.06,215.38,215.37,37.14]
[1757354398911,0.76,215.38,215.37,37.14]
[1757354399295,0.76,215.38,215.37,41.78317221]
[1757354400098,13.59559401,215.37,215.3,0.71]
[1757354400301,0.7,215.36,215.31,37.12]
[1757354400500,1e-08,215.38,215.32,1.26731005]
[1757354400709,0.06,215.39,215.36,26.0]
[1757354400910,0.06,215.39,215.37,38.38718066]
[1757354401218,0.06,215.39,215.37,44.52478478]
[1757354401404,0.06,215.39,215.38,4.64295663]
[1757354401716,0.06,215.39,215.38,67.76295663]
[1757354402114,0.06,215.39,215.38,63.12]
[1757354402425,0.06,215.39,215.38,26.0]
[1757354402626,0.06,215.39,215.38,63.12]
[1757354402923,0.06,215.39,215.38,63.83]
[1757354403295,0.2,215.41,215.38,64.38715479]
[1757354403519,0.06,215.42,215.41,26.0]
[1757354403706,0.06,215.42,215.41,63.1]
[1757354404095,0.06,215.42,215.41,63.81]
[1757354404896,0.06,215.42,215.41,63.1]
[1757354405598,0.06,215.42,215.41,67.74231001]
[1757354406815,0.06,215.42,215.41,68.45231001]
[1757354407422,0.06,215.42,215.41,67.74231001]
[1757354408519,0.76,215.42,215.41,67.72231001]
[1757354408891,0.06,215.42,215.41,67.72231001]
[1757354409703,0.06,215.42,215.41,30.64231001]
[1757354410015,0.06,215.42,215.41,67.72231001]
[1757354410901,0.78,215.42,215.41,67.72231001]
[1757354412400,0.06,215.42,215.41,67.72231001]
[1757354417322,0.06,215.42,215.41,68.40231001]
[1757354418190,0.06,215.42,215.41,67.72231001]
[1757354418395,0.06,215.42,215.41,68.40231001]
[1757354419002,0.06,215.42,215.41,67.72231001]
[1757354419403,0.06,215.42,215.41,68.40231001]
[1757354422727,0.06,215.51,215.41,74.48382467]
[1757354423018,0.06,215.51,215.45,26.0]
[1757354423221,0.06,215.51,215.49,26.0]
[1757354423405,0.06,215.51,215.5,37.04]
[1757354423600,0.2,215.52,215.5,37.72]
[1757354423806,0.2,215.52,215.51,0.68]
[1757354424006,0.2,215.52,215.51,4.34287917]
[1757354424212,0.2,215.52,215.51,3.66287917]
[1757354424440,0.2,215.52,215.51,31.3201559]
[1757354425342,0.2,215.52,215.51,30.6401559]
[1757354425640,0.2,215.52,215.51,31.3201559]
[1757354426016,0.2,215.52,215.51,5.3201559]
[1757354428631,0.2,215.52,215.51,4.6401559]
[1757354428950,0.2,215.52,215.51,9.07608266]
[1757354429120,0.2,215.52,215.51,8.39608266]
[1757354431136,0.2,215.52,215.51,9.07608266]
[1757354431741,0.2,215.52,215.51,8.39608266]
[1757354432731,0.2,215.52,215.51,9.07608266]
[1757354433344,0.06,215.54,215.53,26.0]
[1757354433642,0.06,215.54,215.53,63.0]
[1757354433959,0.06,215.54,215.53,37.68]
[1757354434254,0.06,215.56,215.55,26.0]
[1757354434446,0.06,215.56,215.55,63.0]
[1757354435038,0.06,215.56,215.55,67.63929482]
[1757354435236,0.78,215.56,215.55,36.98]
[1757354437263,0.78,215.56,215.55,41.61929482]
[1757354438163,0.78,215.56,215.55,4.63929482]
[1757354438362,0.06,215.56,215.55,41.61929482]
[1757354439440,0.06,215.56,215.55,42.29929482]
[1757354439646,0.06,215.56,215.55,41.61929482]
[1757354441559,0.2,215.58,215.57,26.0]
[1757354441751,0.2,215.58,215.57,62.98]
[1757354442655,0.2,215.58,215.57,67.6188644]
[1757354443461,0.2,215.58,215.57,68.3388644]
[1757354443762,0.2,215.58,215.57,67.6188644]
[1757354444257,0.2,215.58,215.57,67.5988644]
[1757354445243,0.2,215.58,215.57,68.3188644]
[1757354446844,0.06,215.59,215.57,68.3188644]
[1757354447046,0.06,215.59,215.58,0.72]
[1757354447443,0.06,215.61,215.58,0.72]
[1757354447743,0.06,215.61,215.59,36.94]
[1757354447946,0.06,215.61,215.6,0.72]
[1757354448150,0.06,215.61,215.59,36.94]
[1757354448352,0.06,215.61,215.6,26.0]
[1757354448557,0.06,215.61,215.6,62.94]
[1757354448974,0.74,215.61,215.59,4.63829468]
[1757354449260,0.06,215.61,215.6,36.94]
[1757354449638,0.74,215.61,215.6,36.94]
[1757354450286,0.06,215.61,215.6,36.94]
[1757354451142,0.06,215.61,215.6,41.57821892]
[1757354451338,0.74,215.61,215.6,41.57821892]
[1757354452440,0.06,215.61,215.6,41.57821892]
[1757354452650,0.74,215.61,215.6,41.57821892]
[1757354453245,0.06,215.61,215.6,41.57821892]
[1757354454052,0.74,215.61,215.6,41.57821892]
[1757354455576,0.74,215.61,215.6,36.92]
[1757354457477,0.74,215.61,215.59,30.63837818]
[1757354457647,0.06,215.61,215.6,36.92]
[1757354458271,0.74,215.61,215.6,36.92]
[1757354459076,0.74,215.61,215.6,36.9]
[1757354459788,0.74,215.61,215.52,4.6399406]
[1757354459789,13.59559401,215.6,215.52,4.6399406]
[1757354459957,13.59559401,215.58,215.51,8.42602315]
[1757354460161,0.68,215.57,215.52,36.9]
[1757354460456,0.74,215.61,215.52,36.9]
[1757354460766,0.06,215.61,215.55,26.0]
[1757354460968,0.74,215.61,215.55,26.0]
[1757354461293,13.59559401,215.59,215.58,26.0]
[1757354461452,13.59559401,215.59,215.58,62.9]
[1757354461657,0.68,215.59,215.58,62.9]
[1757354462266,0.68,215.59,215.58,36.9]
[1757354463176,0.68,215.59,215.55,16.23753188]
[1757354463385,0.68,215.59,215.56,36.9]
[1757354463677,0.74,215.61,215.56,36.9]
[1757354463852,0.68,215.6,215.56,36.9]
[1757354464059,0.68,215.6,215.56,37.62]
[1757354465275,0.68,215.6,215.57,4.6388644]
[1757354465480,0.06,215.61,215.58,36.9]
[1757354465976,0.06,215.61,215.58,37.62]
[1757354466156,0.06,215.61,215.58,36.9]
[1757354466353,0.06,215.61,215.59,0.72]
[1757354466580,0.06,215.61,215.6,36.9]
[1757354467184,0.06,215.61,215.6,41.53821892]
[1757354468859,0.06,215.61,215.6,67.53821892]
[1757354471085,0.06,215.61,215.6,30.63821892]
[1757354471383,0.06,215.61,215.6,67.53821892]
[1757354472287,0.78,215.61,215.6,67.53821892]
[1757354472663,13.59559401,215.6,215.54,12.26862541]
[1757354472858,0.72,215.59,215.58,26.0]
[1757354473167,0.72,215.59,215.58,36.88]
[1757354473658,0.06,215.61,215.58,36.88]
[1757354473858,0.06,215.61,215.58,37.55]
[1757354474064,0.06,215.61,215.59,5.30843406]
[1757354474362,0.06,215.61,215.6,36.88]
[1757354474563,0.06,215.61,215.6,37.55]
[1757354474765,0.06,215.61,215.6,36.88]
[1757354476573,0.06,215.61,215.6,42.18821892]
[1757354476885,0.06,215.61,215.6,41.51821892]
[1757354477277,0.06,215.61,215.6,67.51821892]
[1757354478488,0.06,215.61,215.6,68.18821892]
[1757354479177,0.06,215.61,215.6,67.51821892]
[1757354481602,0.06,215.61,215.6,68.18821892]
[1757354482167,0.06,215.61,215.6,67.51821892]
[1757354483289,0.06,215.61,215.6,31.30821892]
[1757354483463,0.06,215.61,215.6,67.51821892]
[1757354483996,0.06,215.61,215.6,30.63821892]
[1757354484200,0.78,215.61,215.6,67.51821892]
[1757354484694,14.37559401,215.61,215.56,0.03]
[1757354484872,14.37559401,215.61,215.57,62.88]
[1757354484873,0.72,215.6,215.57,62.88]
[1757354485270,13.65559401,215.61,215.57,62.88]
[1757354485487,0.72,215.6,215.57,62.88]
[1757354485679,0.72,215.6,215.57,67.5188644]
[1757354487101,0.72,215.6,215.58,62.88]
[1757354487271,14.31559401,215.59,215.56,0.03]
[1757354487471,14.31559401,215.59,215.57,36.88]
[1757354487770,14.31559401,215.58,215.57,36.88]
[1757354490571,0.06,215.61,215.57,42.1888644]
[1757354490771,0.06,215.61,215.58,0.67]
[1757354490994,0.06,215.61,215.59,36.86]
[1757354492292,0.78,215.61,215.59,36.86]
[1757354492486,0.72,215.6,215.59,36.86]
[1757354493992,13.59559401,215.59,215.57,26.0]
[1757354494191,4.69803173,215.61,215.56,4.66906493]
[1757354494192,0.72,215.58,215.56,30.66903522]
[1757354494393,18.29362574,215.61,215.57,36.86]
[1757354494577,13.59559401,215.59,215.57,36.86]
[1757354494778,14.31559401,215.59,215.57,36.86]
[1757354497792,13.59559401,215.58,215.57,36.86]
[1757354498498,13.59559401,215.59,215.57,41.4988644]
[1757354500288,0.06,215.6,215.59,26.0]
[1757354500601,0.06,215.6,215.59,67.49843406]
[1757354500808,0.06,215.6,215.59,68.21843406]
[1757354502686,0.06,215.6,215.59,31.35843406]
[1757354502893,0.06,215.6,215.59,68.21843406]
[1757354504998,0.06,215.6,215.59,68.19843406]
[1757354505409,0.06,215.6,215.59,31.35843406]
[1757354505698,0.06,215.6,215.59,68.19843406]
[1757354505904,0.06,215.61,215.59,68.19843406]
[1757354506097,0.06,215.61,215.6,0.72]
[1757354506788,0.06,215.61,215.6,5.35821892]
[1757354509603,0.06,215.61,215.6,30.63821892]
[1757354509815,0.06,215.61,215.6,67.47821892]
[1757354509997,0.06,215.61,215.6,68.19821892]
[1757354511389,0.06,215.61,215.6,31.35821892]
[1757354511702,0.06,215.61,215.6,68.19821892]
[1757354512502,0.06,215.61,215.6,31.35821892]
[1757354512702,0.06,215.61,215.6,68.19821892]
[1757354513423,0.06,215.61,215.6,31.35821892]
[1757354513612,0.06,215.61,215.6,68.19821892]
[1757354513812,0.06,215.61,215.6,68.17821892]